[Event "Titled Tuesday Blitz November 22 Early 2022"]
[White "Fathy, Elameir"]
[Black "Zaichenko, Daria"]
[WhiteFideId "10600396"]
[BlackFideId "4197453"]
[WhiteElo "2311"]
[BlackElo "2039"]
[Result "1-0"]
[Round "10"]
[TimeControl "180+1"]
[Date "2022.11.23"]
[WhiteClock "0:00:19"]
[BlackClock "0:00:53"]

1. d4 {[%clk 0:02:44]}  d5 {[%clk 0:02:59]} 2. c4 {[%clk 0:02:43]}  e6 {[%clk 0:03:00]} 3. Nf3 {[%clk 0:02:43]}  Be7 {[%clk 0:03:00]} 4. g3 {[%clk 0:02:43]}  Nf6 {[%clk 0:03:00]} 5. Bg2 {[%clk 0:02:43]}  O-O {[%clk 0:03:00]} 6. O-O {[%clk 0:02:44]}  dxc4 {[%clk 0:03:01]} 7. Na3 {[%clk 0:02:43]}  Bxa3 {[%clk 0:02:49]} 8. bxa3 {[%clk 0:02:44]}  Nd5 {[%clk 0:02:49]} 9. a4 {[%clk 0:02:37]}  f5 {[%clk 0:02:48]} 10. Qc2 {[%clk 0:02:33]}  c3 {[%clk 0:02:45]} 11. Ne5 {[%clk 0:02:24]}  Na6 {[%clk 0:02:35]} 12. Ba3 {[%clk 0:02:16]}  Rf6 {[%clk 0:02:32]} 13. e4 {[%clk 0:02:08]}  fxe4 {[%clk 0:02:31]} 14. Bxe4 {[%clk 0:02:09]}  g6 {[%clk 0:02:22]} 15. Ng4 {[%clk 0:02:06]}  Rf8 {[%clk 0:02:20]} 16. Bxf8 {[%clk 0:01:34]}  Qxf8 {[%clk 0:02:19]} 17. Ne3 {[%clk 0:01:24]}  Nab4 {[%clk 0:02:17]} 18. Qb3 {[%clk 0:01:25]}  c6 {[%clk 0:02:04]} 19. a3 {[%clk 0:01:23]}  Na6 {[%clk 0:02:04]} 20. Rfe1 {[%clk 0:01:06]}  Qg7 {[%clk 0:01:51]} 21. Nxd5 {[%clk 0:00:57]}  exd5 {[%clk 0:01:39]} 22. Bxd5+ {[%clk 0:00:50]}  cxd5 {[%clk 0:01:38]} 23. Qxd5+ {[%clk 0:00:50]}  Be6 {[%clk 0:01:22]} 24. Qxe6+ {[%clk 0:00:48]}  Kh8 {[%clk 0:01:22]} 25. Rac1 {[%clk 0:00:45]}  Qxd4 {[%clk 0:01:19]} 26. Rcd1 {[%clk 0:00:34]}  Qc5 {[%clk 0:01:11]} 27. Qf6+ {[%clk 0:00:32]}  Kg8 {[%clk 0:01:10]} 28. Rd7 {[%clk 0:00:30]}  Qf8 {[%clk 0:01:07]} 29. Qxc3 {[%clk 0:00:27]}  Rc8 {[%clk 0:01:05]} 30. Qb3+ {[%clk 0:00:26]}  Kh8 {[%clk 0:01:05]} 31. Ree7 {[%clk 0:00:20]}  Qh6 {[%clk 0:00:56]} 32. Rxh7+ {[%clk 0:00:19]}  Qxh7 {[%clk 0:00:56]} 33. Rxh7+ {[%clk 0:00:20]}  Kxh7 {[%clk 0:00:56]} 34. Qxb7+ {[%clk 0:00:20]}  Rc7 {[%clk 0:00:56]} 35. Qxa6 {[%clk 0:00:21]}  Rc1+ {[%clk 0:00:56]} 36. Kg2 {[%clk 0:00:21]}  Kh6 {[%clk 0:00:56]} 37. Qxa7 {[%clk 0:00:21]}  Ra1 {[%clk 0:00:56]} 38. Qe3+ {[%clk 0:00:19]}  Kh5 {[%clk 0:00:55]} 39. h4 {[%clk 0:00:19]}  Rxa3 {[%clk 0:00:53]} 40. Qg5# {[%clk 0:00:19]} 1-0


[Site "https://www.chess.com"]

[Event "Titled Tuesday Blitz November 22 Early 2022"]
[White "Fernandez Hernandez, Gerardo"]
[Black "Kiseljova, Marya"]
[WhiteFideId "2207400"]
[BlackFideId "4155009"]
[WhiteElo "2222"]
[BlackElo "1907"]
[Result "0-1"]
[Round "10"]
[TimeControl "180+1"]
[Date "2022.11.23"]
[WhiteClock "0:00:02"]
[BlackClock "0:01:03"]

1. e4 {[%clk 0:03:00]}  c5 {[%clk 0:03:00]} 2. d3 {[%clk 0:03:01]}  Nc6 {[%clk 0:02:57]} 3. g3 {[%clk 0:03:01]}  d5 {[%clk 0:02:56]} 4. Nd2 {[%clk 0:03:00]}  Nf6 {[%clk 0:02:54]} 5. Bg2 {[%clk 0:03:00]}  e5 {[%clk 0:02:43]} 6. Ngf3 {[%clk 0:02:59]}  dxe4 {[%clk 0:02:39]} 7. dxe4 {[%clk 0:02:59]}  Be7 {[%clk 0:02:37]} 8. O-O {[%clk 0:02:58]}  O-O {[%clk 0:02:37]} 9. Re1 {[%clk 0:02:57]}  h6 {[%clk 0:02:32]} 10. c3 {[%clk 0:02:56]}  Bg4 {[%clk 0:02:31]} 11. h3 {[%clk 0:02:56]}  Be6 {[%clk 0:02:31]} 12. Qe2 {[%clk 0:02:53]}  Qd7 {[%clk 0:02:30]} 13. Kh2 {[%clk 0:02:48]}  Rfd8 {[%clk 0:02:20]} 14. Nc4 {[%clk 0:02:45]}  Qc7 {[%clk 0:02:20]} 15. a4 {[%clk 0:02:22]}  Rd7 {[%clk 0:02:19]} 16. Bd2 {[%clk 0:01:20]}  Rad8 {[%clk 0:02:17]} 17. Rad1 {[%clk 0:01:20]}  Na5 {[%clk 0:02:13]} 18. Ncxe5 {[%clk 0:01:15]}  Rd6 {[%clk 0:01:55]} 19. Bf4 {[%clk 0:01:00]}  g5 {[%clk 0:01:47]} 20. Rxd6 {[%clk 0:00:55]}  Bxd6 {[%clk 0:01:40]} 21. Bc1 {[%clk 0:00:38]}  Bxe5 {[%clk 0:01:39]} 22. Nxe5 {[%clk 0:00:33]}  Qxe5 {[%clk 0:01:39]} 23. f4 {[%clk 0:00:33]}  gxf4 {[%clk 0:01:31]} 24. gxf4 {[%clk 0:00:34]}  Qh5 {[%clk 0:01:29]} 25. Qb5 {[%clk 0:00:23]}  b6 {[%clk 0:01:26]} 26. f5 {[%clk 0:00:16]}  Bc4 {[%clk 0:01:25]} 27. Rg1 {[%clk 0:00:05]}  Kh7 {[%clk 0:01:07]} 28. Qxc4 {[%clk 0:00:01]}  Nxc4 {[%clk 0:01:06]} 29. Bf1 {[%clk 0:00:02]}  Ne5 {[%clk 0:01:03]} 0-1


[Site "https://www.chess.com"]

[Event "Titled Tuesday Blitz November 22 Early 2022"]
[White "Fiol, Fabrice"]
[Black "Stefanova, Antoaneta"]
[WhiteFideId "611670"]
[BlackFideId "2902257"]
[WhiteElo "2450"]
[BlackElo "2426"]
[Result "1-0"]
[Round "10"]
[TimeControl "180+1"]
[Date "2022.11.23"]
[WhiteClock "0:00:11"]
[BlackClock "0:00:01"]

1. e4 {[%clk 0:03:00]}  c6 {[%clk 0:02:58]} 2. Nf3 {[%clk 0:03:00]}  d5 {[%clk 0:02:58]} 3. d3 {[%clk 0:03:01]}  g6 {[%clk 0:02:55]} 4. Nbd2 {[%clk 0:02:59]}  Bg7 {[%clk 0:02:55]} 5. g3 {[%clk 0:03:00]}  e5 {[%clk 0:02:54]} 6. Bg2 {[%clk 0:03:00]}  Ne7 {[%clk 0:02:54]} 7. O-O {[%clk 0:03:00]}  O-O {[%clk 0:02:53]} 8. b3 {[%clk 0:03:01]}  d4 {[%clk 0:02:50]} 9. a4 {[%clk 0:02:59]}  b6 {[%clk 0:02:49]} 10. Nc4 {[%clk 0:02:56]}  Nd7 {[%clk 0:02:45]} 11. Ba3 {[%clk 0:02:53]}  a5 {[%clk 0:02:38]} 12. Nh4 {[%clk 0:02:44]}  c5 {[%clk 0:02:32]} 13. Nd6 {[%clk 0:02:37]}  Ba6 {[%clk 0:02:27]} 14. Bc1 {[%clk 0:02:31]}  Nc6 {[%clk 0:02:15]} 15. Nc4 {[%clk 0:02:27]}  Nb4 {[%clk 0:02:04]} 16. Bd2 {[%clk 0:02:02]}  Ra7 {[%clk 0:02:02]} 17. Kh1 {[%clk 0:01:53]}  h6 {[%clk 0:01:40]} 18. Bh3 {[%clk 0:01:51]}  Kh7 {[%clk 0:01:37]} 19. Bxd7 {[%clk 0:01:47]}  Rxd7 {[%clk 0:01:36]} 20. Ng2 {[%clk 0:01:32]}  f5 {[%clk 0:01:32]} 21. f4 {[%clk 0:01:24]}  fxe4 {[%clk 0:01:28]} 22. dxe4 {[%clk 0:01:24]}  exf4 {[%clk 0:01:21]} 23. Bxb4 {[%clk 0:01:11]}  axb4 {[%clk 0:01:19]} 24. Nxf4 {[%clk 0:01:10]}  Qe7 {[%clk 0:01:14]} 25. Qd3 {[%clk 0:01:07]}  Bb7 {[%clk 0:01:07]} 26. Rae1 {[%clk 0:01:05]}  Re8 {[%clk 0:01:07]} 27. Nd5 {[%clk 0:00:51]}  Bxd5 {[%clk 0:00:42]} 28. exd5 {[%clk 0:00:52]}  Qxe1 {[%clk 0:00:42]} 29. Rxe1 {[%clk 0:00:52]}  Rxe1+ {[%clk 0:00:41]} 30. Kg2 {[%clk 0:00:53]}  Rxd5 {[%clk 0:00:40]} 31. h4 {[%clk 0:00:44]}  h5 {[%clk 0:00:32]} 32. Nxb6 {[%clk 0:00:33]}  Rde5 {[%clk 0:00:32]} 33. Qc4 {[%clk 0:00:16]}  R5e2+ {[%clk 0:00:30]} 34. Kf3 {[%clk 0:00:16]}  Re3+ {[%clk 0:00:29]} 35. Kf2 {[%clk 0:00:16]}  Rd1 {[%clk 0:00:25]} 36. a5 {[%clk 0:00:13]}  Rd2+ {[%clk 0:00:23]} 37. Kf1 {[%clk 0:00:14]}  Rxg3 {[%clk 0:00:15]} 38. a6 {[%clk 0:00:11]}  Rh2 {[%clk 0:00:09]} 39. a7 {[%clk 0:00:10]}  Rf3+ {[%clk 0:00:07]} 40. Ke1 {[%clk 0:00:09]}  Rg3 {[%clk 0:00:06]} 41. Qf1 {[%clk 0:00:08]}  Re3+ {[%clk 0:00:04]} 42. Kd1 {[%clk 0:00:08]}  Re8 {[%clk 0:00:02]} 43. a8=Q {[%clk 0:00:08]}  Rxa8 {[%clk 0:00:02]} 44. Nxa8 {[%clk 0:00:09]}  Rxh4 {[%clk 0:00:02]} 45. Nc7 {[%clk 0:00:09]}  Rg4 {[%clk 0:00:02]} 46. Ne6 {[%clk 0:00:09]}  Kh6 {[%clk 0:00:01]} 47. Nxg7 {[%clk 0:00:09]}  Kxg7 {[%clk 0:00:01]} 48. Qf2 {[%clk 0:00:09]}  Rg5 {[%clk 0:00:02]} 49. Qf4 {[%clk 0:00:09]}  Rf5 {[%clk 0:00:02]} 50. Qc7+ {[%clk 0:00:09]}  Kh6 {[%clk 0:00:03]} 51. Qd6 {[%clk 0:00:09]}  h4 {[%clk 0:00:03]} 52. Ke2 {[%clk 0:00:10]}  h3 {[%clk 0:00:02]} 53. Qc7 {[%clk 0:00:10]}  h2 {[%clk 0:00:02]} 54. Qxh2+ {[%clk 0:00:09]}  Rh5 {[%clk 0:00:02]} 55. Qf4+ {[%clk 0:00:09]}  Kg7 {[%clk 0:00:01]} 56. Qc7+ {[%clk 0:00:09]}  Kh6 {[%clk 0:00:01]} 57. Qd6 {[%clk 0:00:10]}  Kg7 {[%clk 0:00:01]} 58. Qe7+ {[%clk 0:00:10]}  Kh6 {[%clk 0:00:01]} 59. Kf3 {[%clk 0:00:10]}  Rf5+ {[%clk 0:00:01]} 60. Kg4 {[%clk 0:00:11]}  Rh5 {[%clk 0:00:01]} 61. Qf8+ {[%clk 0:00:11]}  Kh7 {[%clk 0:00:01]} 62. Qf7+ {[%clk 0:00:11]}  Kh6 {[%clk 0:00:02]} 63. Qg8 {[%clk 0:00:10]}  Rg5+ {[%clk 0:00:01]} 64. Kf4 {[%clk 0:00:11]}  Rf5+ {[%clk 0:00:01]} 65. Ke4 {[%clk 0:00:12]}  Rh5 {[%clk 0:00:02]} 66. Qh8+ {[%clk 0:00:12]}  Kg5 {[%clk 0:00:01]} 67. Qd8+ {[%clk 0:00:12]}  Kh6 {[%clk 0:00:01]} 68. Qe8 {[%clk 0:00:12]}  Rf5 {[%clk 0:00:01]} 69. Qh8+ {[%clk 0:00:12]}  Kg5 {[%clk 0:00:01]} 70. Qd8+ {[%clk 0:00:11]}  Kh6 {[%clk 0:00:01]} 71. Qd7 {[%clk 0:00:11]} 1-0


[Site "https://www.chess.com"]

[Event "Titled Tuesday Blitz November 22 Early 2022"]
[White "Garcia Ramos, Daniel"]
[Black "Le Goff, Damien"]
[WhiteFideId "32010311"]
[BlackFideId "634808"]
[WhiteElo "2357"]
[BlackElo "2426"]
[Result "1-0"]
[Round "10"]
[TimeControl "180+1"]
[Date "2022.11.23"]
[WhiteClock "0:00:48"]
[BlackClock "0:00:30"]

1. e4 {[%clk 0:03:00]}  c5 {[%clk 0:02:57]} 2. Nf3 {[%clk 0:03:00]}  d6 {[%clk 0:02:57]} 3. d4 {[%clk 0:03:00]}  cxd4 {[%clk 0:02:58]} 4. Nxd4 {[%clk 0:03:00]}  Nf6 {[%clk 0:02:59]} 5. f3 {[%clk 0:03:01]}  e5 {[%clk 0:02:57]} 6. Nb3 {[%clk 0:03:00]}  d5 {[%clk 0:02:56]} 7. Bg5 {[%clk 0:03:00]}  d4 {[%clk 0:02:54]} 8. c3 {[%clk 0:03:00]}  Nc6 {[%clk 0:02:53]} 9. cxd4 {[%clk 0:02:59]}  Bb4+ {[%clk 0:02:50]} 10. Bd2 {[%clk 0:02:59]}  Bxd2+ {[%clk 0:02:49]} 11. Qxd2 {[%clk 0:02:56]}  exd4 {[%clk 0:02:49]} 12. Bb5 {[%clk 0:02:56]}  O-O {[%clk 0:02:47]} 13. Bxc6 {[%clk 0:02:56]}  bxc6 {[%clk 0:02:47]} 14. Qxd4 {[%clk 0:02:56]}  Qe7 {[%clk 0:02:46]} 15. Nc3 {[%clk 0:02:57]}  Rd8 {[%clk 0:02:43]} 16. Qc5 {[%clk 0:02:54]}  Qb7 {[%clk 0:02:35]} 17. O-O {[%clk 0:02:53]}  a5 {[%clk 0:02:36]} 18. Rad1 {[%clk 0:02:51]}  Rxd1 {[%clk 0:02:33]} 19. Rxd1 {[%clk 0:02:52]}  Be6 {[%clk 0:02:33]} 20. Nxa5 {[%clk 0:02:41]}  Qxb2 {[%clk 0:02:33]} 21. Nxc6 {[%clk 0:02:42]}  h5 {[%clk 0:02:27]} 22. h4 {[%clk 0:02:40]}  Bxa2 {[%clk 0:02:20]} 23. e5 {[%clk 0:02:30]}  Ne8 {[%clk 0:02:07]} 24. Ne7+ {[%clk 0:02:17]}  Kh7 {[%clk 0:01:58]} 25. e6 {[%clk 0:02:02]}  g6 {[%clk 0:01:45]} 26. exf7 {[%clk 0:01:56]}  Bxf7 {[%clk 0:01:45]} 27. Ne4 {[%clk 0:01:56]}  Ra2 {[%clk 0:01:38]} 28. Ng5+ {[%clk 0:01:45]}  Kg7 {[%clk 0:01:35]} 29. Qd4+ {[%clk 0:01:42]}  Qxd4+ {[%clk 0:01:35]} 30. Rxd4 {[%clk 0:01:43]}  Nf6 {[%clk 0:01:30]} 31. Rb4 {[%clk 0:01:36]}  Ra7 {[%clk 0:01:25]} 32. Nc8 {[%clk 0:01:34]}  Rc7 {[%clk 0:01:23]} 33. Nd6 {[%clk 0:01:34]}  Bg8 {[%clk 0:01:14]} 34. Rb8 {[%clk 0:01:30]}  Bd5 {[%clk 0:01:09]} 35. Kh2 {[%clk 0:01:28]}  Rd7 {[%clk 0:01:08]} 36. Ne8+ {[%clk 0:01:24]}  Nxe8 {[%clk 0:01:08]} 37. Rxe8 {[%clk 0:01:25]}  Rc7 {[%clk 0:01:06]} 38. Re5 {[%clk 0:01:22]}  Bg8 {[%clk 0:01:03]} 39. Ra5 {[%clk 0:01:20]}  Rb7 {[%clk 0:01:03]} 40. Ra6 {[%clk 0:01:20]}  Rc7 {[%clk 0:01:02]} 41. Kg3 {[%clk 0:01:19]}  Rb7 {[%clk 0:01:03]} 42. Ne4 {[%clk 0:01:16]}  Rc7 {[%clk 0:01:00]} 43. Rb6 {[%clk 0:01:15]}  Ra7 {[%clk 0:01:00]} 44. Nd6 {[%clk 0:01:15]}  Rd7 {[%clk 0:00:56]} 45. Ne8+ {[%clk 0:01:13]}  Kf7 {[%clk 0:00:56]} 46. Nf6 {[%clk 0:01:13]}  Rd8 {[%clk 0:00:52]} 47. Kf4 {[%clk 0:01:13]}  Kg7 {[%clk 0:00:47]} 48. Nxg8 {[%clk 0:00:59]}  Rxg8 {[%clk 0:00:45]} 49. Kg5 {[%clk 0:01:00]}  Kh7 {[%clk 0:00:42]} 50. Rb7+ {[%clk 0:00:55]}  Rg7 {[%clk 0:00:30]} 51. Rxg7+ {[%clk 0:00:46]}  Kxg7 {[%clk 0:00:30]} 52. g4 {[%clk 0:00:47]}  hxg4 {[%clk 0:00:30]} 53. fxg4 {[%clk 0:00:48]} 1-0


[Site "https://www.chess.com"]

[Event "Titled Tuesday Blitz November 22 Early 2022"]
[White "Gjestemoen-VonHirsch, Andre"]
[Black "Rose, Felix"]
[WhiteFideId "1539531"]
[BlackFideId "5105722"]
[WhiteElo "2198"]
[BlackElo "2039"]
[Result "0-1"]
[Round "10"]
[TimeControl "180+1"]
[Date "2022.11.23"]
[WhiteClock "0:00:02"]
[BlackClock "0:01:17"]

1. b3 {[%clk 0:02:56]}  e5 {[%clk 0:02:59]} 2. Bb2 {[%clk 0:02:55]}  Nc6 {[%clk 0:03:00]} 3. e3 {[%clk 0:02:55]}  Nf6 {[%clk 0:03:00]} 4. Bb5 {[%clk 0:02:50]}  Bd6 {[%clk 0:02:59]} 5. Nf3 {[%clk 0:02:50]}  Qe7 {[%clk 0:02:56]} 6. d4 {[%clk 0:02:48]}  exd4 {[%clk 0:02:55]} 7. Nxd4 {[%clk 0:02:39]}  Nxd4 {[%clk 0:02:55]} 8. Qxd4 {[%clk 0:02:40]}  c6 {[%clk 0:02:41]} 9. Be2 {[%clk 0:02:38]}  Bb4+ {[%clk 0:02:40]} 10. Nd2 {[%clk 0:02:09]}  d5 {[%clk 0:02:39]} 11. O-O {[%clk 0:01:53]}  O-O {[%clk 0:02:32]} 12. a3 {[%clk 0:01:46]}  Bc5 {[%clk 0:02:20]} 13. Qh4 {[%clk 0:01:30]}  Bf5 {[%clk 0:02:09]} 14. Bd3 {[%clk 0:01:26]}  Bg6 {[%clk 0:02:00]} 15. b4 {[%clk 0:01:22]}  Bd6 {[%clk 0:02:00]} 16. Qd4 {[%clk 0:00:58]}  Rfe8 {[%clk 0:01:58]} 17. Nf3 {[%clk 0:00:49]}  Be4 {[%clk 0:01:57]} 18. Bxe4 {[%clk 0:00:20]}  dxe4 {[%clk 0:01:57]} 19. Nd2 {[%clk 0:00:20]}  Rad8 {[%clk 0:01:52]} 20. Qc3 {[%clk 0:00:17]}  Bxh2+ {[%clk 0:01:43]} 21. Kxh2 {[%clk 0:00:17]}  Qd6+ {[%clk 0:01:43]} 22. Kg1 {[%clk 0:00:16]}  Qxd2 {[%clk 0:01:42]} 23. Rad1 {[%clk 0:00:09]}  Qxc3 {[%clk 0:01:42]} 24. Bxc3 {[%clk 0:00:09]}  Nd5 {[%clk 0:01:42]} 25. Bd4 {[%clk 0:00:09]}  Nb6 {[%clk 0:01:27]} 26. Rd2 {[%clk 0:00:05]}  Nc8 {[%clk 0:01:26]} 27. Rfd1 {[%clk 0:00:05]}  Rd5 {[%clk 0:01:26]} 28. c4 {[%clk 0:00:04]}  Rd7 {[%clk 0:01:25]} 29. Bc5 {[%clk 0:00:03]}  Rxd2 {[%clk 0:01:25]} 30. Rxd2 {[%clk 0:00:04]}  b6 {[%clk 0:01:25]} 31. Bd4 {[%clk 0:00:04]}  Rd8 {[%clk 0:01:25]} 32. Bc3 {[%clk 0:00:04]}  Rxd2 {[%clk 0:01:25]} 33. Bxd2 {[%clk 0:00:05]}  f5 {[%clk 0:01:26]} 34. Kf1 {[%clk 0:00:05]}  Kf7 {[%clk 0:01:26]} 35. Ke2 {[%clk 0:00:06]}  Ke6 {[%clk 0:01:27]} 36. Bc3 {[%clk 0:00:07]}  Nd6 {[%clk 0:01:24]} 37. c5 {[%clk 0:00:05]}  bxc5 {[%clk 0:01:24]} 38. bxc5 {[%clk 0:00:06]}  Ne8 {[%clk 0:01:24]} 39. Bd4 {[%clk 0:00:05]}  g6 {[%clk 0:01:24]} 40. Kd2 {[%clk 0:00:05]}  Kd5 {[%clk 0:01:24]} 41. Kc3 {[%clk 0:00:06]}  Nc7 {[%clk 0:01:25]} 42. a4 {[%clk 0:00:05]}  Ne6 {[%clk 0:01:22]} 43. g3 {[%clk 0:00:05]}  a6 {[%clk 0:01:19]} 44. a5 {[%clk 0:00:02]}  Nxc5 {[%clk 0:01:17]} 0-1


[Site "https://www.chess.com"]

[Event "Titled Tuesday Blitz November 22 Early 2022"]
[White "Goltseva, Ekaterina"]
[Black "Ilkhomi, Jaloliddin"]
[WhiteFideId "24173770"]
[BlackFideId "14700948"]
[WhiteElo "2200"]
[BlackElo "2045"]
[Result "1/2-1/2"]
[Round "10"]
[TimeControl "180+1"]
[Date "2022.11.23"]
[WhiteClock "0:00:04"]
[BlackClock "0:00:02"]

1. Nf3 {[%clk 0:02:08]}  Nf6 {[%clk 0:02:59]} 2. c4 {[%clk 0:02:04]}  e6 {[%clk 0:02:58]} 3. Nc3 {[%clk 0:02:03]}  d5 {[%clk 0:02:57]} 4. e3 {[%clk 0:02:00]}  Be7 {[%clk 0:02:56]} 5. b3 {[%clk 0:01:58]}  O-O {[%clk 0:02:56]} 6. Bb2 {[%clk 0:01:57]}  b6 {[%clk 0:02:56]} 7. Qc2 {[%clk 0:01:53]}  Bb7 {[%clk 0:02:56]} 8. Be2 {[%clk 0:01:51]}  Nbd7 {[%clk 0:02:56]} 9. g4 {[%clk 0:01:51]}  Ne4 {[%clk 0:02:51]} 10. d3 {[%clk 0:01:25]}  Nxc3 {[%clk 0:02:49]} 11. Bxc3 {[%clk 0:01:25]}  Bf6 {[%clk 0:02:34]} 12. g5 {[%clk 0:01:21]}  Bxc3+ {[%clk 0:02:30]} 13. Qxc3 {[%clk 0:01:20]}  c5 {[%clk 0:02:15]} 14. h4 {[%clk 0:01:13]}  e5 {[%clk 0:01:55]} 15. cxd5 {[%clk 0:01:08]}  Bxd5 {[%clk 0:01:35]} 16. e4 {[%clk 0:01:07]}  Bc6 {[%clk 0:01:30]} 17. Nxe5 {[%clk 0:01:02]}  Nxe5 {[%clk 0:01:27]} 18. Qxe5 {[%clk 0:01:02]}  Re8 {[%clk 0:01:26]} 19. Qc3 {[%clk 0:00:58]}  Qd7 {[%clk 0:01:21]} 20. O-O-O {[%clk 0:00:55]}  Rad8 {[%clk 0:01:20]} 21. h5 {[%clk 0:00:53]}  Qd4 {[%clk 0:01:16]} 22. Qxd4 {[%clk 0:00:47]}  Rxd4 {[%clk 0:01:17]} 23. f4 {[%clk 0:00:46]}  Red8 {[%clk 0:01:17]} 24. Kc2 {[%clk 0:00:43]}  a5 {[%clk 0:01:09]} 25. f5 {[%clk 0:00:34]}  Kf8 {[%clk 0:01:06]} 26. Rhf1 {[%clk 0:00:28]}  a4 {[%clk 0:00:54]} 27. g6 {[%clk 0:00:26]}  h6 {[%clk 0:00:51]} 28. f6 {[%clk 0:00:23]}  fxg6 {[%clk 0:00:50]} 29. hxg6 {[%clk 0:00:21]}  R4d6 {[%clk 0:00:48]} 30. e5 {[%clk 0:00:20]}  Re6 {[%clk 0:00:46]} 31. Rf5 {[%clk 0:00:15]}  axb3+ {[%clk 0:00:41]} 32. axb3 {[%clk 0:00:15]}  Bd5 {[%clk 0:00:21]} 33. Bh5 {[%clk 0:00:12]}  Rd7 {[%clk 0:00:21]} 34. Rdf1 {[%clk 0:00:10]}  b5 {[%clk 0:00:19]} 35. fxg7+ {[%clk 0:00:09]}  Kxg7 {[%clk 0:00:20]} 36. Rf7+ {[%clk 0:00:10]}  Rxf7 {[%clk 0:00:20]} 37. Rxf7+ {[%clk 0:00:09]}  Kg8 {[%clk 0:00:21]} 38. Rf5 {[%clk 0:00:05]}  Ra6 {[%clk 0:00:21]} 39. Kb2 {[%clk 0:00:04]}  c4 {[%clk 0:00:20]} 40. dxc4 {[%clk 0:00:04]}  bxc4 {[%clk 0:00:21]} 41. bxc4 {[%clk 0:00:04]}  Bxc4 {[%clk 0:00:22]} 42. Rf6 {[%clk 0:00:04]}  Be6 {[%clk 0:00:19]} 43. Kc3 {[%clk 0:00:03]}  Rc6+ {[%clk 0:00:19]} 44. Kd4 {[%clk 0:00:04]}  Rc4+ {[%clk 0:00:19]} 45. Kd3 {[%clk 0:00:04]}  Rc6 {[%clk 0:00:19]} 46. Ke3 {[%clk 0:00:04]}  Rc3+ {[%clk 0:00:19]} 47. Kd2 {[%clk 0:00:04]}  Rc6 {[%clk 0:00:19]} 48. Bf3 {[%clk 0:00:04]}  Ra6 {[%clk 0:00:18]} 49. Rxe6 {[%clk 0:00:05]}  Ra2+ {[%clk 0:00:08]} 50. Ke3 {[%clk 0:00:05]}  Kg7 {[%clk 0:00:09]} 51. Rf6 {[%clk 0:00:04]}  Ra3+ {[%clk 0:00:09]} 52. Kf4 {[%clk 0:00:04]}  Ra4+ {[%clk 0:00:10]} 53. Be4 {[%clk 0:00:05]}  Ra7 {[%clk 0:00:10]} 54. Rd6 {[%clk 0:00:04]}  h5 {[%clk 0:00:10]} 55. e6 {[%clk 0:00:04]}  Kf6 {[%clk 0:00:09]} 56. Rd7 {[%clk 0:00:05]}  Ra8 {[%clk 0:00:06]} 57. e7 {[%clk 0:00:04]}  Re8 {[%clk 0:00:05]} 58. Rc7 {[%clk 0:00:03]}  h4 {[%clk 0:00:05]} 59. Kg4 {[%clk 0:00:03]}  h3 {[%clk 0:00:04]} 60. Kxh3 {[%clk 0:00:04]}  Ke5 {[%clk 0:00:05]} 61. Bd3 {[%clk 0:00:03]}  Kd6 {[%clk 0:00:05]} 62. Rb7 {[%clk 0:00:03]}  Ke6 {[%clk 0:00:06]} 63. Kg4 {[%clk 0:00:03]}  Kf6 {[%clk 0:00:06]} 64. Kf4 {[%clk 0:00:03]}  Ra8 {[%clk 0:00:04]} 65. Be4 {[%clk 0:00:03]}  Re8 {[%clk 0:00:04]} 66. Rd7 {[%clk 0:00:03]}  Rg8 {[%clk 0:00:04]} 67. Rd8 {[%clk 0:00:03]}  Rg7 {[%clk 0:00:02]} 68. e8=Q {[%clk 0:00:04]}  Rd7 {[%clk 0:00:02]} 69. Rxd7 {[%clk 0:00:04]} 1/2-1/2


[Site "https://www.chess.com"]

[Event "Titled Tuesday Blitz November 22 Early 2022"]
[White "Goriatchkin, Jouri"]
[Black "Sargissyan, Sargis"]
[WhiteFideId "4120183"]
[BlackFideId "13303210"]
[WhiteElo "1925"]
[BlackElo "2109"]
[Result "0-1"]
[Round "10"]
[TimeControl "180+1"]
[Date "2022.11.23"]
[WhiteClock "0:00:08"]
[BlackClock "0:00:09"]

1. d4 {[%clk 0:03:00]}  Nf6 {[%clk 0:02:56]} 2. Bg5 {[%clk 0:02:59]}  g6 {[%clk 0:02:53]} 3. Bxf6 {[%clk 0:02:59]}  exf6 {[%clk 0:02:54]} 4. c4 {[%clk 0:02:59]}  f5 {[%clk 0:02:50]} 5. Nc3 {[%clk 0:02:59]}  Bg7 {[%clk 0:02:46]} 6. e3 {[%clk 0:02:59]}  Nc6 {[%clk 0:02:46]} 7. g3 {[%clk 0:02:50]}  h5 {[%clk 0:02:36]} 8. h4 {[%clk 0:02:47]}  Ne7 {[%clk 0:02:24]} 9. Bg2 {[%clk 0:02:46]}  c6 {[%clk 0:02:25]} 10. Nge2 {[%clk 0:02:42]}  d5 {[%clk 0:02:25]} 11. c5 {[%clk 0:02:39]}  Ng8 {[%clk 0:02:21]} 12. a3 {[%clk 0:02:37]}  Nf6 {[%clk 0:02:22]} 13. b4 {[%clk 0:02:36]}  Ne4 {[%clk 0:02:21]} 14. Qc2 {[%clk 0:02:30]}  O-O {[%clk 0:02:19]} 15. O-O {[%clk 0:02:28]}  g5 {[%clk 0:02:09]} 16. hxg5 {[%clk 0:02:26]}  Qxg5 {[%clk 0:02:10]} 17. Nf4 {[%clk 0:02:25]}  h4 {[%clk 0:02:10]} 18. gxh4 {[%clk 0:02:21]}  Qxh4 {[%clk 0:02:11]} 19. Nxe4 {[%clk 0:02:08]}  fxe4 {[%clk 0:02:10]} 20. f3 {[%clk 0:02:06]}  exf3 {[%clk 0:01:21]} 21. Rxf3 {[%clk 0:02:04]}  Bg4 {[%clk 0:01:20]} 22. Rff1 {[%clk 0:01:58]}  Rae8 {[%clk 0:01:20]} 23. Qf2 {[%clk 0:01:49]}  Qxf2+ {[%clk 0:01:18]} 24. Kxf2 {[%clk 0:01:50]}  Bh6 {[%clk 0:01:12]} 25. Bf3 {[%clk 0:01:28]}  Bxf4 {[%clk 0:00:59]} 26. exf4 {[%clk 0:01:27]}  Bxf3 {[%clk 0:00:58]} 27. Kxf3 {[%clk 0:01:21]}  Kg7 {[%clk 0:00:58]} 28. Rae1 {[%clk 0:01:17]}  Kf6 {[%clk 0:00:58]} 29. Re5 {[%clk 0:01:17]}  Rh8 {[%clk 0:00:55]} 30. Rfe1 {[%clk 0:01:06]}  Rxe5 {[%clk 0:00:54]} 31. fxe5+ {[%clk 0:01:05]}  Kf5 {[%clk 0:00:54]} 32. Kg3 {[%clk 0:01:01]}  Rg8+ {[%clk 0:00:53]} 33. Kf3 {[%clk 0:00:57]}  Rh8 {[%clk 0:00:38]} 34. Kg3 {[%clk 0:00:56]}  Rh6 {[%clk 0:00:18]} 35. a4 {[%clk 0:00:36]}  Kg6 {[%clk 0:00:18]} 36. b5 {[%clk 0:00:31]}  Kf5 {[%clk 0:00:17]} 37. b6 {[%clk 0:00:27]}  axb6 {[%clk 0:00:16]} 38. cxb6 {[%clk 0:00:27]}  Rh8 {[%clk 0:00:15]} 39. a5 {[%clk 0:00:24]}  Ra8 {[%clk 0:00:15]} 40. Ra1 {[%clk 0:00:24]}  Ra6 {[%clk 0:00:13]} 41. Kf3 {[%clk 0:00:23]}  Ke6 {[%clk 0:00:12]} 42. Kf4 {[%clk 0:00:23]}  Ra8 {[%clk 0:00:10]} 43. Ra2 {[%clk 0:00:17]}  Ra6 {[%clk 0:00:10]} 44. Ra1 {[%clk 0:00:17]}  Ra8 {[%clk 0:00:09]} 45. a6 {[%clk 0:00:10]}  bxa6 {[%clk 0:00:09]} 46. b7 {[%clk 0:00:10]}  Rb8 {[%clk 0:00:09]} 47. Rxa6 {[%clk 0:00:11]}  Kd7 {[%clk 0:00:09]} 48. Rb6 {[%clk 0:00:08]}  Kc7 {[%clk 0:00:09]} 49. Rb2 {[%clk 0:00:08]}  Rxb7 {[%clk 0:00:09]} 50. Rxb7+ {[%clk 0:00:05]}  Kxb7 {[%clk 0:00:10]} 51. Kf5 {[%clk 0:00:05]}  c5 {[%clk 0:00:10]} 52. dxc5 {[%clk 0:00:05]}  Kc6 {[%clk 0:00:09]} 53. Kf6 {[%clk 0:00:02]}  d4 {[%clk 0:00:10]} 54. Kxf7 {[%clk 0:00:03]}  d3 {[%clk 0:00:11]} 55. e6 {[%clk 0:00:03]}  d2 {[%clk 0:00:11]} 56. e7 {[%clk 0:00:04]}  d1=Q {[%clk 0:00:11]} 57. Kg7 {[%clk 0:00:04]}  Qg1+ {[%clk 0:00:11]} 58. Kf7 {[%clk 0:00:05]}  Qf2+ {[%clk 0:00:11]} 59. Kg7 {[%clk 0:00:05]}  Qg3+ {[%clk 0:00:11]} 60. Kf7 {[%clk 0:00:05]}  Qf4+ {[%clk 0:00:11]} 61. Kg7 {[%clk 0:00:05]}  Qe5+ {[%clk 0:00:11]} 62. Kf7 {[%clk 0:00:06]}  Qf5+ {[%clk 0:00:10]} 63. Kg7 {[%clk 0:00:06]}  Qe6 {[%clk 0:00:10]} 64. Kf8 {[%clk 0:00:07]}  Qf6+ {[%clk 0:00:09]} 65. Ke8 {[%clk 0:00:07]}  Kxc5 {[%clk 0:00:09]} 66. Kd8 {[%clk 0:00:08]}  Qd6+ {[%clk 0:00:09]} 0-1


[Site "https://www.chess.com"]